bitfinex-derivatives/quotes_BTCF0:USTF0_20250211
["timestamp","ask_amount","ask_price","bid_price","bid_amount"]
[1739302997783,0.2103734,95074.0,95073.0,0.3283]
[1739302998487,0.2103734,95074.0,95072.0,0.0382]
[1739302998671,0.2103756,95073.0,95072.0,0.0382]
[1739303000187,0.2103933,95065.0,95064.0,0.00015781]
[1739303000383,0.3608,95065.0,95046.0,0.18826895]
[1739303000678,0.3608,95052.0,95050.0,0.12754936]
[1739303000885,0.2104236,95052.0,95045.0,0.18826895]
[1739303001084,0.3608,95054.0,95045.0,0.18826895]
[1739303001380,0.2104247,95051.0,95045.0,0.18826895]
[1739303001586,0.3608,95054.0,95046.0,0.008]
[1739303001879,0.2104332,95047.0,95046.0,0.008]
[1739303003080,0.2104354,95046.0,95045.0,0.19926895]
[1739303003580,0.2094354,95046.0,95045.0,0.19726895]
[1739303003776,0.5702354,95046.0,95045.0,0.19726895]
[1739303004088,0.5612354,95046.0,95045.0,0.18826895]
[1739303004279,0.5612354,95046.0,95045.0,0.19026895]
[1739303004481,0.7707354,95046.0,95045.0,0.19026895]
[1739303004782,0.7717354,95046.0,95045.0,0.20026895]
[1739303004987,0.7717354,95046.0,95045.0,0.012]
[1739303006079,0.7727354,95046.0,95045.0,0.01]
[1739303006472,0.5713,95046.0,95040.0,0.00015781]
[1739303006678,0.2104465,95041.0,95040.0,0.00015781]
[1739303009379,0.2114465,95041.0,95040.0,0.00015781]
[1739303009773,0.2124465,95041.0,95040.0,0.00015781]
[1739303012186,0.002,95041.0,95040.0,0.00015781]
[1739303012489,0.002,95041.0,95040.0,0.21060651]
[1739303016289,0.00015781,95059.0,95040.0,0.36095781]
[1739303016481,0.00015781,95059.0,95051.0,0.5712229]
[1739303016683,0.210418,95054.0,95052.0,0.3276]
[1739303018089,0.210418,95054.0,95052.0,0.5380207]
[1739303018595,0.2104199,95053.0,95052.0,0.3276]
[1739303019489,0.2104199,95053.0,95052.0,0.3286]
[1739303020189,0.2204199,95053.0,95052.0,0.3286]
[1739303020791,0.01,95053.0,95052.0,0.3286]
[1739303020997,0.01,95053.0,95052.0,0.55190265]
[1739303022598,0.00015781,95059.0,95058.0,0.2104089]
[1739303023592,0.00015781,95059.0,95058.0,0.2114089]
[1739303023797,0.01415781,95059.0,95058.0,0.2124089]
[1739303025702,0.00415781,95059.0,95058.0,0.2114089]
[1739303027896,0.00415781,95059.0,95058.0,0.001]
[1739303029010,0.21456441,95059.0,95058.0,0.001]
[1739303030100,0.00415781,95059.0,95058.0,0.001]
[1739303030998,0.21456441,95059.0,95058.0,0.001]
[1739303042318,0.21456441,95059.0,95058.0,0.2114088]
[1739303043109,0.00415781,95059.0,95058.0,0.2114088]
[1739303043309,0.18535236,95064.0,95063.0,0.2103978]
[1739303043918,0.18535236,95064.0,95063.0,1.7103978]
[1739303044108,0.2103739,95074.0,95063.0,1.5]
[1739303044308,0.2103739,95074.0,95072.0,0.2103767]
[1739303045718,0.2143739,95074.0,95072.0,0.2113767]
[1739303046110,0.2143739,95074.0,95072.0,0.002]
[1739303046511,0.2143739,95074.0,95072.0,0.2123776]
[1739303046706,0.004,95074.0,95073.0,0.3608]
[1739303048020,0.001,95074.0,95073.0,0.3618]
[1739303048222,0.001,95074.0,95073.0,0.3628]
[1739303049628,0.001,95074.0,95073.0,0.002]
[1739303050727,0.01050391,95074.0,95073.0,0.002]
[1739303051624,0.01050391,95074.0,95073.0,0.2123756]
[1739303052234,0.01050391,95074.0,95073.0,0.002]
[1739303052436,0.22087731,95074.0,95073.0,0.002]
[1739303055832,0.22087731,95074.0,95073.0,0.3628]
[1739303056035,0.01050391,95074.0,95073.0,0.5731756]
[1739303056829,0.01050391,95074.0,95073.0,2.0731756]
[1739303058942,0.01050391,95074.0,95073.0,0.5731756]
[1739303061633,0.01050391,95074.0,95073.0,0.2123756]
[1739303062232,0.22087731,95074.0,95073.0,0.002]
[1739303068341,0.23306874,95074.0,95073.0,0.002]
[1739303068546,0.22087731,95074.0,95073.0,0.002]
[1739303069137,0.01050391,95074.0,95073.0,0.002]
[1739303069337,0.01050391,95074.0,95073.0,0.2123756]
[1739303069747,0.22087731,95074.0,95073.0,1.7123756]
[1739303069947,0.01050391,95074.0,95073.0,1.7123756]
[1739303070339,0.01050391,95074.0,95073.0,0.2123756]
[1739303071252,0.22087731,95074.0,95073.0,0.2123756]
[1739303071848,0.01050391,95074.0,95073.0,0.2123756]
[1739303077755,0.01050391,95074.0,95073.0,0.2113756]
[1739303079147,0.00950391,95074.0,95073.0,0.2103756]
[1739303079348,0.01050391,95074.0,95073.0,0.2103756]
[1739303084144,0.2103404,95089.0,95073.0,1.5]
[1739303084454,0.2103293,95094.0,95080.0,0.3608]
[1739303084652,0.2103293,95094.0,95084.0,0.12754936]
[1739303084852,0.2103336,95092.0,95084.0,0.12754936]
[1739303085057,0.2103368,95091.0,95084.0,0.12754936]
[1739303085848,0.001,95089.0,95084.0,0.12754936]
[1739303086447,0.001,95089.0,95088.0,0.3608]
[1739303086647,0.001,95091.0,95088.0,0.3608]
[1739303087347,0.001,95091.0,95090.0,0.210338]
[1739303088757,0.001,95091.0,95090.0,0.327238]
[1739303088954,0.36627468,95101.0,95090.0,0.1169]
[1739303089258,0.2103189,95099.0,95091.0,0.12754936]
[1739303090454,0.2103189,95099.0,95091.0,0.14083304]
[1739303090656,0.2103189,95099.0,95091.0,0.14183304]
[1739303090856,0.15595998,95101.0,95091.0,0.14183304]
[1739303091153,0.2103256,95096.0,95091.0,0.14183304]
[1739303091747,0.15595998,95101.0,95091.0,0.14183304]
[1739303091955,0.2103335,95092.0,95091.0,0.14183304]
[1739303092150,0.2103335,95092.0,95091.0,0.01428368]
[1739303092356,0.15595998,95099.0,95091.0,0.01428368]
[1739303092357,0.210325,95096.0,95091.0,0.01428368]
[1739303093363,0.210329,95095.0,95091.0,0.01428368]
[1739303093564,0.21033,95094.0,95091.0,0.01328368]
[1739303093756,0.2103287,95095.0,95091.0,0.01428368]
[1739303094452,0.15595998,95099.0,95091.0,0.01428368]
[1739303094763,0.210321,95098.0,95091.0,0.01428368]
[1739303094967,0.15595998,95099.0,95091.0,0.01428368]
[1739303095159,0.2103231,95097.0,95091.0,0.01428368]
[1739303095359,0.210325,95096.0,95091.0,0.01428368]
[1739303095560,0.01225397,95106.0,95091.0,0.01428368]
[1739303095756,0.166275,95108.0,95091.0,0.01428368]
[1739303095951,0.2103268,95096.0,95091.0,0.01428368]
[1739303097155,0.2103268,95096.0,95094.0,0.2103282]
[1739303097355,0.2103268,95096.0,95091.0,0.01428368]
[1739303097659,0.1137,95108.0,95091.0,0.01428368]
[1739303097864,0.3239985,95108.0,95107.0,0.2103004]
[1739303098060,0.2102985,95108.0,95107.0,0.2103004]
[1739303098261,0.15595998,95110.0,95103.0,0.2103072]
[1739303098262,0.2103048,95106.0,95103.0,0.2103072]
[1739303098461,0.2103048,95106.0,95104.0,0.2103059]
[1739303099159,0.15595998,95112.0,95100.0,0.3282]
[1739303099367,0.15595998,95112.0,95108.0,0.2102979]
[1739303099662,0.3264916,95111.0,95110.0,0.2102938]
[1739303099868,0.2102982,95108.0,95107.0,0.3608]
[1739303100161,0.36625108,95112.0,95110.0,0.2102938]
[1739303100563,0.2102916,95111.0,95110.0,0.2102938]
[1739303100755,0.15595998,95112.0,95110.0,0.001]
[1739303101064,0.15595998,95112.0,95111.0,0.2102916]
[1739303101759,0.15095998,95112.0,95111.0,0.2102916]
[1739303102063,0.15095998,95112.0,95102.0,0.0525778]
[1739303102064,0.2103181,95099.0,95098.0,0.00015772]
[1739303102265,0.5711181,95099.0,95098.0,0.00015772]
[1739303102464,0.2103358,95091.0,95090.0,0.18826895]
[1739303102771,0.5711358,95091.0,95090.0,0.18826895]
[1739303103155,0.2103491,95085.0,95084.0,0.25205233]
[1739303103359,0.5711491,95085.0,95084.0,0.25205233]
[1739303104468,0.5711491,95085.0,95084.0,0.25305233]
[1739303105570,0.5731491,95085.0,95084.0,0.25405233]
[1739303106160,0.5731491,95085.0,95084.0,0.002]
[1739303106369,0.5731491,95085.0,95075.0,0.00015772]
[1739303106668,0.571169,95076.0,95075.0,0.00015772]
[1739303108064,0.573169,95076.0,95075.0,0.00015772]
[1739303108871,0.575169,95076.0,95075.0,0.00015772]
[1739303110671,0.2103739,95074.0,95054.0,0.29834]
[1739303110870,0.3648,95076.0,95054.0,0.29834]
[1739303110871,0.2103885,95068.0,95060.0,0.12754936]
[1739303111073,0.2103898,95067.0,95060.0,0.12754936]
[1739303111564,0.2103958,95064.0,95060.0,0.12754936]
[1739303111771,0.2103958,95064.0,95055.0,0.1113]
[1739303112675,0.2103958,95064.0,95060.0,0.005]
[1739303113864,0.2113958,95064.0,95060.0,0.005]
[1739303114373,0.2113958,95064.0,95055.0,0.1113]
[1739303114374,0.2113958,95064.0,95055.0,0.1193]
[1739303114767,0.2113958,95064.0,95063.0,0.3608]
[1739303115167,0.001,95064.0,95063.0,0.3608]
[1739303116479,0.2103956,95064.0,95063.0,0.3608]
[1739303116875,0.00015772,95073.0,95063.0,0.3608]
[1739303117075,0.002,95064.0,95063.0,0.5711978]
[1739303117578,0.002,95064.0,95063.0,0.5731978]
[1739303118281,0.18708928,95097.0,95072.0,0.0525943]
[1739303118282,0.2103388,95090.0,95072.0,0.0525943]
[1739303118469,0.2103279,95095.0,95090.0,0.2103369]
[1739303118668,0.18708928,95097.0,95096.0,0.2103248]
[1739303118866,0.2103253,95096.0,95091.0,0.1055]
[1739303119073,0.18708928,95097.0,95091.0,0.1055]
[1739303119272,0.2103336,95092.0,95091.0,0.1055]
[1739303120383,0.2103336,95092.0,95091.0,0.11886667]
[1739303120586,0.18708928,95097.0,95091.0,0.48199058]
[1739303120877,0.18708928,95097.0,95096.0,0.2103248]
[1739303121272,0.00015741,95104.0,95100.0,0.2103146]
[1739303121469,0.00015741,95104.0,95103.0,0.2103093]
[1739303121670,0.00015741,95104.0,95103.0,0.21263321]
[1739303122679,0.3608,95124.0,95109.0,0.2102949]
[1739303122680,0.2102696,95121.0,95109.0,0.2102949]
[1739303122988,0.2102573,95127.0,95113.0,0.3608]
[1739303123174,0.39734928,95126.0,95114.0,0.1145]
[1739303123373,0.2102773,95118.0,95114.0,0.1145]
[1739303123570,0.18708928,95126.0,95114.0,0.1145]
[1739303123776,0.39734858,95126.0,95120.0,0.00232391]
[1739303124194,0.18708928,95126.0,95120.0,0.00232391]
[1739303124381,0.70708,95187.0,95127.0,0.210256]
[1739303124382,0.1165,95151.0,95127.0,0.210256]
[1739303124684,0.2102098,95148.0,95141.0,0.3608]
[1739303124884,0.24860068,95156.0,95142.0,0.2102209]
[1739303125087,0.18695317,95158.0,95142.0,0.4349209]
[1739303125478,0.2101907,95157.0,95148.0,0.12754936]
[1739303125674,0.18695317,95158.0,95152.0,0.00232391]
[1739303126073,0.18695317,95158.0,95153.0,0.2101985]
[1739303126477,0.18695317,95158.0,95157.0,0.2101899]
[1739303126883,0.18695317,95158.0,95157.0,0.21251381]
[1739303127574,0.18695317,95158.0,95157.0,0.21351381]
[1739303127777,0.18895317,95158.0,95157.0,0.21451381]
[1739303129086,0.002,95158.0,95157.0,0.21451381]
[1739303131892,0.002,95158.0,95157.0,0.00432391]
[1739303132484,0.3628,95158.0,95157.0,0.00432391]
[1739303135186,0.4778,95158.0,95157.0,0.00432391]
[1739303138489,0.4778,95158.0,95123.0,0.3608]
[1739303138697,0.210255,95128.0,95125.0,0.1131]
[1739303139091,0.2102276,95140.0,95134.0,0.2102393]
[1739303139298,0.2102183,95145.0,95134.0,0.3608]
[1739303139504,0.2102218,95143.0,95138.0,0.2102304]
[1739303139704,0.2102236,95142.0,95138.0,0.2102304]
[1739303140099,0.2102282,95140.0,95138.0,0.2102304]
[1739303141005,0.2102282,95140.0,95138.0,0.2112304]
[1739303142106,0.2132282,95140.0,95138.0,0.2122304]
[1739303142603,0.005,95140.0,95138.0,0.2122304]
[1739303142905,0.005,95140.0,95139.0,0.1056]
[1739303143303,0.006,95140.0,95139.0,0.1056]
[1739303144700,0.2162295,95140.0,95135.0,0.1075]
[1739303145007,0.2102348,95137.0,95135.0,0.11952711]
[1739303145199,0.2102348,95137.0,95135.0,0.01202711]
[1739303145399,0.2102367,95136.0,95132.0,0.3608]
[1739303145604,0.2102427,95134.0,95132.0,0.3608]
[1739303145909,0.3608,95138.0,95125.0,0.00128]
[1739303146117,0.2102662,95123.0,95117.0,0.01174995]
[1739303146299,0.2102702,95121.0,95112.0,0.44332]
[1739303146505,0.2102702,95121.0,95112.0,0.3608]
[1739303146905,0.2102702,95121.0,95113.0,0.2102858]
[1739303147209,0.00015772,95126.0,95117.0,0.2102777]
[1739303147603,0.001,95121.0,95120.0,0.2102717]
[1739303147800,0.001,95121.0,95120.0,0.5710717]
[1739303148614,0.001,95121.0,95120.0,0.3608]
[1739303148912,0.2112695,95121.0,95120.0,0.3608]
[1739303149119,0.00015772,95126.0,95112.0,0.3726437]
[1739303149407,0.2092734,95120.0,95112.0,0.3726437]
[1739303149915,0.2102872,95113.0,95111.0,0.0015769]
[1739303150610,0.2102982,95108.0,95092.0,1.5]
[1739303151806,0.2102982,95108.0,95090.0,0.2278]
[1739303152005,0.2102982,95108.0,95084.0,0.25205233]
[1739303152006,0.2103035,95106.0,95084.0,0.25205233]
[1739303152206,0.003,95108.0,95084.0,0.25205233]
[1739303152207,0.5711368,95091.0,95084.0,0.25205233]
[1739303152405,0.3608,95091.0,95084.0,0.25205233]
[1739303152715,0.2103479,95086.0,95084.0,0.25205233]
[1739303152914,0.2103291,95095.0,95090.0,0.210338]
[1739303153209,0.2103291,95095.0,95084.0,0.25205233]
[1739303153210,0.2103303,95094.0,95085.0,0.12754936]
[1739303153407,0.2103361,95091.0,95085.0,0.12754936]
[1739303153607,0.2103389,95090.0,95084.0,0.2113506]
[1739303154010,0.2103389,95090.0,95084.0,0.001]
[1739303154507,0.2103491,95085.0,95084.0,0.001]
[1739303154703,0.2103491,95085.0,95083.0,0.00015772]
[1739303156014,0.2245,95084.0,95083.0,0.00015772]
[1739303157112,0.2295,95084.0,95083.0,0.00115772]
[1739303159115,0.2345,95084.0,95083.0,0.00215772]
[1739303160518,0.2345,95084.0,95066.0,1.5]
[1739303160719,0.3608,95068.0,95066.0,1.5]
[1739303160913,0.2103888,95067.0,95066.0,1.5]
[1739303162423,0.2123888,95067.0,95066.0,1.5]
[1739303166314,0.002,95067.0,95063.0,0.00157768]
[1739303166517,0.2103938,95065.0,95063.0,0.00157768]
[1739303166719,0.2104088,95058.0,95057.0,0.00015772]
[1739303166925,0.2104088,95058.0,95046.0,0.01168641]
[1739303166926,0.2104331,95047.0,95046.0,0.01168641]
[1739303167119,0.3608,95058.0,95041.0,0.3608]
[1739303167321,0.2104125,95057.0,95041.0,0.3608]
[1739303167516,0.2104368,95046.0,95041.0,0.37249471]
[1739303167711,0.3608,95058.0,95041.0,0.37249471]
[1739303168024,0.2104379,95045.0,95041.0,0.37249471]
[1739303168617,0.2104379,95045.0,95041.0,0.37649471]
[1739303171019,0.5712442,95042.0,95041.0,0.01569471]
[1739303171222,0.5712442,95042.0,95041.0,0.004]
[1739303171420,0.2104884,95023.0,95021.0,0.108]
[1739303171621,0.2104929,95020.0,95019.0,0.00132]
[1739303171922,0.2104996,95017.0,95016.0,1.5]
[1739303172321,0.2064996,95017.0,95009.0,0.3365]
[1739303172716,0.2105151,95010.0,95009.0,0.3365]
[1739303172916,0.2105151,95010.0,95009.0,0.1155]
[1739303173315,0.2105195,95008.0,95007.0,0.00010535]
[1739303174828,0.2225195,95008.0,95007.0,0.00110535]
[1739303175226,0.2225195,95008.0,95002.0,0.15315768]
[1739303175227,0.012,95008.0,95002.0,0.15315768]
[1739303175532,0.5713306,95003.0,95002.0,0.05315768]
[1739303176030,0.5693306,95003.0,95002.0,0.05315768]
[1739303176922,0.5693306,95003.0,95002.0,0.05415768]
[1739303177120,0.5723306,95003.0,95002.0,0.05415768]
[1739303177731,0.5813306,95003.0,95002.0,0.05415768]
[1739303177932,0.5813306,95003.0,95002.0,0.001]
[1739303178519,0.2105531,94993.0,94982.0,0.2105765]
[1739303178731,0.3608,94995.0,94987.0,0.2105645]
[1739303178926,0.3608,94995.0,94980.0,0.36517126]
[1739303179139,0.2105589,94991.0,94980.0,0.36517126]
[1739303179320,0.3608,94995.0,94991.0,0.2105555]
[1739303179521,0.00015791,94997.0,94994.0,0.3608]
[1739303179725,0.016,95003.0,95002.0,0.2105328]
[1739303179923,0.011,95003.0,95002.0,0.5713328]
[1739303180123,0.3608,95018.0,95002.0,1.8608]
[1739303180327,0.3608,95018.0,95008.0,0.12754936]
[1739303180544,0.2104759,95028.0,95018.0,0.2104964]
[1739303180836,0.2104759,95028.0,95019.0,0.2104942]
[1739303181227,0.00015791,95033.0,95019.0,0.2104942]
[1739303181541,0.00015791,95033.0,95017.0,0.3608]
[1739303181734,0.2104805,95026.0,95018.0,0.001]
[1739303182035,0.2104854,95024.0,95018.0,0.2114972]
[1739303182233,0.2104868,95023.0,95018.0,0.001]
[1739303182425,0.2104921,95021.0,95018.0,0.001]
[1739303183130,0.2104921,95021.0,95019.0,0.1126]
[1739303183330,0.2105062,95014.0,95013.0,0.00015791]
[1739303184935,0.2175062,95014.0,95013.0,0.00115791]
[1739303185238,0.007,95014.0,95013.0,0.21166631]
[1739303185736,0.2104454,95042.0,95015.0,0.210504]
[1739303185942,0.2104474,95041.0,95032.0,0.3608]
[1739303186234,0.2104474,95041.0,95032.0,0.584]
[1739303186738,0.3608,95053.0,95032.0,0.584]
[1739303187036,0.2104275,95050.0,95041.0,0.210445]
[1739303187435,0.210409,95058.0,95050.0,0.2104257]
[1739303187744,0.00060001,95068.0,95049.0,0.3608]
[1739303188034,0.15462368,95064.0,95057.0,0.3608]
[1739303188342,0.15462368,95064.0,95062.0,0.2103986]
[1739303188642,0.15462368,95064.0,95058.0,1.72448]
[1739303188835,0.15462368,95064.0,95058.0,1.8382]
[1739303189930,0.15462368,95064.0,95058.0,0.3382]
[1739303190127,0.2104066,95059.0,95058.0,0.3402]
[1739303190536,0.2104066,95059.0,95058.0,0.3382]
[1739303191335,0.2144066,95059.0,95058.0,0.3382]
[1739303191731,0.004,95059.0,95058.0,0.3382]
[1739303192343,0.15462368,95064.0,95063.0,0.2103977]
[1739303192544,0.15462368,95064.0,95063.0,0.5711977]
[1739303192741,0.15462368,95064.0,95063.0,0.6536777]
[1739303193630,0.15462368,95064.0,95063.0,0.44328]
[1739303194038,0.15462368,95064.0,95063.0,0.44428]
[1739303194238,0.15862368,95064.0,95063.0,0.44428]
[1739303194438,0.00415782,95064.0,95063.0,0.001]
[1739303196037,0.2103999,95062.0,95035.0,0.2104582]
[1739303196242,0.5712375,95045.0,95031.0,0.1141]
[1739303196446,0.3608,95045.0,95027.0,0.2251]
[1739303196639,0.3608,95033.0,95027.0,0.1117]
[1739303197042,0.2104663,95032.0,95027.0,0.1117]
[1739303197240,0.2024663,95032.0,95020.0,0.00157841]
[1739303197843,0.1984663,95032.0,95020.0,0.00157841]
[1739303198446,0.1984663,95032.0,95020.0,0.19311169]
[1739303198840,0.21047,95031.0,95020.0,0.00157841]
[1739303199146,0.21047,95031.0,95027.0,0.015]
[1739303199647,0.001,95032.0,95020.0,0.00757841]
[1739303199843,0.001,95032.0,95020.0,0.006]
[1739303199844,0.3608,95027.0,95020.0,0.006]
[1739303200053,0.3608,95027.0,95016.0,0.00015782]
[1739303200054,0.2104996,95017.0,95016.0,0.00015782]
[1739303200348,0.5712996,95017.0,95016.0,0.00015782]
[1739303201141,0.5712996,95017.0,95016.0,0.00115782]
[1739303202641,0.5712996,95017.0,95016.0,0.00315782]
[1739303208451,0.5712996,95017.0,95016.0,0.0045928]
[1739303210354,0.2105527,94993.0,94992.0,0.3608]
[1739303210556,0.0526279,95012.0,94990.0,0.2261]
[1739303210557,0.2105557,94992.0,94990.0,0.1143]
[1739303212556,0.2065557,94992.0,94990.0,0.1143]
[1739303212754,0.2045557,94992.0,94990.0,0.1143]
[1739303213149,0.2055557,94992.0,94990.0,0.1203]
[1739303213957,0.2055557,94992.0,94990.0,0.1233]
[1739303214155,0.2055557,94992.0,94991.0,0.00143521]
[1739303215261,0.5663557,94992.0,94991.0,0.00143521]
[1739303215460,0.2065705,94985.0,94974.0,0.1112]
[1739303215760,0.2085926,94975.0,94974.0,0.1112]
[1739303217069,0.2085926,94975.0,94974.0,0.1132]
[1739303217271,0.2105503,94995.0,94984.0,0.2105727]
[1739303217579,0.3608,94996.0,94985.0,0.2105687]
[1739303217873,0.2105738,94984.0,94982.0,0.3608]
[1739303218274,0.2105614,94990.0,94982.0,0.3608]
[1739303218478,0.2105614,94990.0,94984.0,0.210572]
[1739303219073,0.001,94995.0,94979.0,1.50132]
[1739303219269,0.2105754,94983.0,94979.0,1.5]
[1739303219478,0.002,94984.0,94974.0,0.48375935]
[1739303219883,0.2105757,94983.0,94979.0,0.00143442]
[1739303220175,0.2105816,94980.0,94979.0,0.00143442]
[1739303221170,0.1165,94983.0,94979.0,0.00143442]
[1739303221371,0.2105735,94984.0,94979.0,0.00143442]
[1739303221581,0.001,94984.0,94983.0,0.5713749]
[1739303221970,0.001,94984.0,94983.0,0.57280932]
[1739303222384,0.3332,94999.0,94983.0,0.57280932]
[1739303222385,0.2105639,94988.0,94983.0,0.57280932]
[1739303222570,0.3332,94999.0,94983.0,0.36223442]
[1739303222571,0.210543,94998.0,94983.0,0.36223442]
[1739303222875,0.2105692,94986.0,94982.0,0.2105765]
[1739303223065,0.20913478,94986.0,94983.0,0.2105747]
[1739303223379,0.003,94984.0,94983.0,0.2105747]
[1739303223578,0.003,94984.0,94983.0,0.5713747]
[1739303223880,0.00015791,95000.0,94999.0,0.2105394]
[1739303225371,0.15446586,95002.0,94999.0,0.3608]
[1739303225568,0.03493018,95009.0,95008.0,0.2105195]
[1739303225772,0.24860068,95030.0,95010.0,0.0526287]
[1739303225974,0.1091,95055.0,95046.0,0.2104339]
[1739303226280,0.27746328,95059.0,95051.0,0.2104226]
[1739303226580,0.21707932,95059.0,95055.0,0.00143525]
[1739303227272,0.2104104,95058.0,95055.0,0.00143525]
[1739303227578,0.2104104,95058.0,95050.0,0.3608]
[1739303227783,0.2104104,95058.0,95056.0,0.00143525]
[1739303228772,0.2104104,95058.0,95057.0,0.00143525]
[1739303228967,0.21707932,95059.0,95057.0,0.00143525]
[1739303229375,0.21707932,95059.0,95057.0,0.21184475]
[1739303229674,0.22407932,95059.0,95058.0,0.00143525]
[1739303230081,0.21707932,95059.0,95058.0,0.00143525]
[1739303230278,0.22407932,95059.0,95058.0,0.00143525]
[1739303230678,0.21707932,95059.0,95058.0,0.00143525]
[1739303230983,0.22407932,95059.0,95058.0,0.00143525]
[1739303231180,0.007,95059.0,95058.0,0.00143525]
[1739303231875,0.007,95059.0,95058.0,0.00243525]
[1739303231876,0.022,95059.0,95058.0,0.00243525]
[1739303232481,0.01,95059.0,95058.0,0.00143525]
[1739303233080,0.008,95059.0,95058.0,0.00143525]
[1739303233978,0.2104353,95046.0,95037.0,0.3608]
[1739303235286,0.2104796,95026.0,95025.0,0.3608]
[1739303235879,0.2104796,95026.0,95018.0,0.08236]
[1739303236083,0.19166364,95035.0,95018.0,0.08236]
[1739303236084,0.2104632,95034.0,95018.0,0.08236]
[1739303236279,0.2104871,95023.0,95018.0,0.08236]
[1739303236586,0.004,95026.0,95018.0,0.08236]
[1739303236787,0.210487,95023.0,95014.0,0.5506571]
[1739303237290,0.209487,95023.0,95015.0,1.5]
[1739303237481,0.210492,95021.0,95014.0,0.1884971]
[1739303237677,0.210492,95021.0,95014.0,0.1897771]
[1739303237878,0.222,95020.0,95014.0,0.1897771]
[1739303238078,0.222,95020.0,95019.0,0.00257843]
[1739303239483,0.229,95020.0,95019.0,0.00257843]
[1739303239684,0.229,95020.0,95019.0,0.001]
[1739303239988,0.2105255,95006.0,95003.0,0.3608]
[1739303240885,0.3608,95010.0,95003.0,0.3608]
[1739303241079,0.2105284,95004.0,95003.0,0.3608]
[1739303241674,0.012,95006.0,95003.0,0.001]
[1739303241880,0.2105262,95005.0,95003.0,0.001]
[1739303242382,0.018,95006.0,94994.0,0.3608]
[1739303242695,0.015,95004.0,95003.0,0.001]
[1739303243187,0.009,95004.0,95003.0,0.001]
[1739303244190,0.21054,94999.0,94994.0,0.3608]
[1739303244379,0.2105422,94998.0,94994.0,0.3608]
[1739303244783,0.210547,94996.0,94994.0,0.3608]
[1739303245185,0.019,95004.0,94994.0,0.3608]
[1739303245487,0.013,95004.0,95002.0,0.5713309]
[1739303245788,0.1068,95013.0,95002.0,0.3608]
[1739303246087,0.2105232,95007.0,95002.0,0.3608]
[1739303247091,0.006,95004.0,95002.0,0.3608]
[1739303247281,0.2285295,95004.0,95002.0,0.3618]
[1739303247680,0.2285295,95004.0,95002.0,0.001]
[1739303248084,0.006,95004.0,95002.0,0.001]
[1739303248293,0.006,95004.0,95002.0,0.3618]
[1739303248489,0.018,95007.0,95002.0,0.3618]
[1739303248680,0.018,95007.0,95003.0,1.5]
[1739303248886,0.012,95004.0,95003.0,1.5]
[1739303249191,0.018,95004.0,95003.0,1.5]
[1739303249692,0.012,95004.0,95003.0,1.5]
[1739303250292,0.006,95007.0,95003.0,1.5]
[1739303250498,0.018,95007.0,95003.0,1.5]
[1739303250789,0.018,95007.0,95004.0,0.08232]
[1739303251183,0.006,95007.0,95004.0,0.08232]
[1739303251893,0.00015781,95014.0,95004.0,0.08232]
[1739303252188,0.00015781,95014.0,95013.0,0.3608]
[1739303253590,0.00215781,95014.0,95013.0,0.3608]
[1739303254092,0.00415781,95014.0,95013.0,0.3608]
[1739303254792,0.00215781,95014.0,95013.0,0.3618]
[1739303255191,0.00415781,95014.0,95013.0,0.3618]
[1739303255696,0.00215781,95014.0,95013.0,0.3608]
[1739303255887,0.00415781,95014.0,95013.0,0.3608]
[1739303256288,0.00215781,95014.0,95013.0,0.3608]
[1739303256491,0.00715781,95014.0,95013.0,0.3608]
[1739303257092,0.00715781,95014.0,95013.0,0.5713085]
[1739303257489,0.00715781,95014.0,95013.0,0.3608]
[1739303257691,0.00515781,95014.0,95013.0,0.3608]
[1739303257890,0.01015781,95014.0,95013.0,0.3618]
[1739303259200,0.2105336,95002.0,94995.0,0.00128]
[1739303259497,0.2309,95013.0,94994.0,0.21055]
[1739303259798,0.2309,95013.0,94992.0,0.3608]
[1739303259799,0.210542,94998.0,94992.0,0.3608]
[1739303259994,0.2105191,95009.0,94992.0,0.37191344]
[1739303260191,0.2105515,94994.0,94992.0,0.3608]
[1739303261695,0.19163882,95002.0,94980.0,0.3608]
[1739303261895,0.2105528,94993.0,94992.0,0.004]
[1739303262495,0.2095657,94988.0,94980.0,0.37204705]
[1739303262698,0.2105669,94987.0,94980.0,0.37204705]
[1739303263301,0.0021579,94993.0,94980.0,0.37204705]
[1739303263500,0.210569,94986.0,94980.0,0.37204705]
[1739303264294,0.2105711,94985.0,94980.0,0.37204705]
[1739303264800,0.2105711,94985.0,94980.0,0.37304705]
[1739303265004,0.2105711,94985.0,94980.0,0.38004705]
[1739303265305,0.2105711,94985.0,94980.0,0.37904705]
[1739303265493,0.001,94986.0,94980.0,0.38004705]
[1739303265698,0.2105793,94981.0,94980.0,0.38004705]
[1739303266995,0.2105793,94981.0,94980.0,0.3688]
[1739303267791,0.2105793,94981.0,94980.0,0.3618]
[1739303267991,0.001,94981.0,94980.0,0.3688]
[1739303268200,0.001,94981.0,94980.0,0.5793816]
[1739303268392,0.0001579,94993.0,94980.0,0.3688]
[1739303268604,0.0001579,94993.0,94992.0,0.3608]
[1739303268902,0.0001579,94993.0,94990.0,1.7105581]
[1739303269102,0.0001579,94993.0,94992.0,0.210555]
[1739303269697,0.210514,95011.0,94992.0,1.5]
[1739303269898,0.210514,95011.0,95001.0,0.3608]
[1739303270107,0.210516,95010.0,95001.0,0.3608]
[1739303270906,0.15514125,95012.0,95001.0,0.3608]
[1739303271099,0.15514125,95012.0,95011.0,0.2105128]
[1739303272000,0.15914125,95012.0,95011.0,0.2105128]
[1739303273603,0.004,95012.0,95011.0,0.2105128]
[1739303273798,0.0001579,95015.0,95010.0,0.3608]
[1739303274001,0.0001579,95015.0,95014.0,0.3608]
[1739303274501,0.1143,95039.0,95014.0,0.3608]
[1739303274703,0.1143,95039.0,95025.0,0.3608]
[1739303274911,0.2104649,95033.0,95025.0,0.3608]
[1739303275409,0.2104705,95031.0,95025.0,0.3608]
[1739303277109,0.2104705,95031.0,95025.0,0.3618]
[1739303277503,0.3608,95032.0,95025.0,0.3618]
[1739303277804,0.2104796,95026.0,95025.0,0.3618]
[1739303279206,0.01456001,95032.0,95025.0,0.3618]
[1739303279408,0.014,95032.0,95031.0,0.2104685]
[1739303280214,0.0001579,95039.0,95038.0,0.210453]